bitfinex/quotes_BTCUSD_20250529
["timestamp","ask_amount","ask_price","bid_price","bid_amount"]
[1748500585931,0.47063095,107950.0,107940.0,0.03244]
[1748500586144,0.47063095,107950.0,107940.0,0.00614104]
[1748500586569,0.47063095,107950.0,107940.0,0.02214104]
[1748500586779,0.45063095,107950.0,107940.0,0.03804104]
[1748500589913,0.45063095,107950.0,107940.0,0.43804104]
[1748500591653,0.79044404,107950.0,107940.0,0.43804104]
[1748500592139,0.45063095,107950.0,107940.0,0.43804104]
[1748500593086,0.45063095,107950.0,107940.0,0.03804104]
[1748500593534,0.45063095,107950.0,107940.0,0.43804104]
[1748500594086,0.43063095,107950.0,107940.0,0.43804104]
[1748500596477,0.43063095,107950.0,107940.0,0.03804104]
[1748500596900,0.43063095,107950.0,107940.0,0.43804104]
[1748500599765,0.42927084,107950.0,107940.0,0.43804104]
[1748500600006,0.42927084,107950.0,107940.0,0.03804104]
[1748500601214,0.40927084,107950.0,107940.0,0.03804104]
[1748500601798,1.08908393,107950.0,107940.0,0.00104]
[1748500602026,1.09797286,107950.0,107940.0,0.00104]
[1748500602183,1.14800838,107950.0,107940.0,0.00104]
[1748500602597,1.08908393,107950.0,107940.0,0.00104]
[1748500602813,1.12108393,107950.0,107940.0,0.00104]
[1748500604779,1.21213788,107950.0,107940.0,0.00104]
[1748500607019,0.87728479,107950.0,107940.0,0.00104]
[1748500607233,1.21709788,107950.0,107940.0,0.00104]
[1748500608257,1.19709788,107950.0,107940.0,0.00104]
[1748500609451,1.18089788,107950.0,107940.0,0.00104]
[1748500610117,1.16509788,107950.0,107940.0,0.00104]
[1748500611445,1.18169788,107950.0,107940.0,0.00104]
[1748500614827,1.16509788,107950.0,107940.0,0.00104]
[1748500615381,1.14509788,107950.0,107940.0,0.00104]
[1748500616304,6.22629788,107950.0,107940.0,0.00104]
[1748500617958,6.86611097,107950.0,107940.0,0.00104]
[1748500619182,7.66071097,107950.0,107940.0,0.00104]
[1748500619406,7.77668997,107950.0,107940.0,0.00104]
[1748500619662,7.76560134,107950.0,107940.0,0.00104]
[1748500620103,7.76560134,107950.0,107940.0,4e-05]
[1748500621632,7.08597516,107950.0,107940.0,4e-05]
[1748500621848,7.76560134,107950.0,107940.0,4e-05]
[1748500622063,7.76756672,107950.0,107940.0,4e-05]
[1748500622954,7.78306672,107950.0,107940.0,4e-05]
[1748500623396,7.76815915,107950.0,107940.0,4e-05]
[1748500626323,7.76812356,107950.0,107940.0,4e-05]
[1748500629620,7.75704195,107950.0,107940.0,4e-05]
[1748500629832,7.76812428,107950.0,107940.0,4e-05]
[1748500630050,7.75704195,107950.0,107940.0,4e-05]
[1748500633449,7.75697334,107950.0,107940.0,4e-05]
[1748500633885,7.84633334,107950.0,107940.0,4e-05]
[1748500634552,7.84629334,107950.0,107940.0,4e-05]
[1748500634765,7.87226535,107950.0,107940.0,4e-05]
[1748500635427,7.85602535,107950.0,107940.0,4e-05]
[1748500635648,7.85602261,107950.0,107940.0,4e-05]
[1748500637189,7.84102261,107950.0,107940.0,4e-05]
[1748500637402,7.7770475,107950.0,107940.0,4e-05]
[1748500637665,7.84102682,107950.0,107940.0,4e-05]
[1748500641711,7.83982682,107950.0,107940.0,4e-05]
[1748500643884,7.83985785,107950.0,107940.0,4e-05]
[1748500647365,7.82411333,107950.0,107940.0,4e-05]
[1748500651219,7.82407333,107950.0,107940.0,4e-05]
[1748500652604,7.82415352,107950.0,107940.0,4e-05]
[1748500652821,7.82415352,107950.0,107940.0,0.01634]
[1748500654271,7.82415352,107950.0,107940.0,4e-05]
[1748500654716,7.8241617,107950.0,107940.0,4e-05]
[1748500655373,7.791401,107950.0,107940.0,4e-05]
[1748500656766,7.7914161,107950.0,107940.0,4e-05]
[1748500659209,7.7914161,107950.0,107940.0,0.01634]
[1748500661098,7.79143282,107950.0,107940.0,0.01634]
[1748500663669,7.83329083,107950.0,107940.0,0.01634]
[1748500663998,7.83329083,107950.0,107940.0,0.03134]
[1748500665254,7.76006298,107950.0,107940.0,0.03134]
[1748500665461,7.8333489,107950.0,107940.0,0.03134]
[1748500667925,5.88455235,107940.0,107930.0,4e-05]
[1748500668140,6.75449268,107940.0,107930.0,4e-05]
[1748500669068,6.78141713,107940.0,107930.0,4e-05]
[1748500669967,6.80923513,107940.0,107930.0,4e-05]
[1748500671456,6.82523513,107940.0,107930.0,4e-05]
[1748500672492,6.78335519,107940.0,107930.0,4e-05]
[1748500672739,6.82520787,107940.0,107930.0,4e-05]
[1748500674766,6.80917663,107940.0,107930.0,4e-05]
[1748500675445,6.76733109,107940.0,107930.0,4e-05]
[1748500676484,6.83501437,107940.0,107930.0,4e-05]
[1748500676690,6.85101437,107940.0,107930.0,4e-05]
[1748500677925,6.8362102,107940.0,107930.0,4e-05]
[1748500678344,6.83620416,107940.0,107930.0,4e-05]
[1748500678992,6.78332505,107940.0,107930.0,4e-05]
[1748500679402,6.79812652,107940.0,107930.0,4e-05]
[1748500681314,7.19840247,107940.0,107930.0,4e-05]
[1748500681759,7.18240247,107940.0,107930.0,4e-05]
[1748500682388,7.46996247,107940.0,107930.0,4e-05]
[1748500684642,7.46996247,107940.0,107930.0,0.01614]
[1748500685437,7.46991735,107940.0,107930.0,0.01614]
[1748500685864,7.5609713,107940.0,107930.0,0.01614]
[1748500686479,7.46991735,107940.0,107930.0,0.01614]
[1748500687875,5.88438347,107930.0,107920.0,0.0161]
[1748500688248,6.14000933,107930.0,107920.0,0.0161]
[1748500688463,6.1548108,107930.0,107920.0,0.0161]
[1748500689260,6.1826298,107930.0,107920.0,0.0161]
[1748500689479,6.1826298,107930.0,107920.0,0.0171]
[1748500689683,6.18262618,107930.0,107920.0,0.0171]
[1748500689896,6.16782471,107930.0,107920.0,0.0171]
[1748500690447,6.45510471,107930.0,107920.0,0.0171]
[1748500690688,7.30037305,107930.0,107910.0,0.0156]
[1748500690921,6.56421459,107920.0,107910.0,0.0156]
[1748500691157,6.18460643,107910.0,107900.0,0.03164]
[1748500691391,6.8955982,107910.0,107900.0,0.03164]
[1748500691654,6.25529413,107910.0,107900.0,0.03164]
[1748500691861,6.96274431,107910.0,107900.0,0.03164]
[1748500692089,7.03600174,107910.0,107900.0,0.03164]
[1748500692306,7.03600174,107910.0,107900.0,0.03168918]
[1748500692524,6.97641777,107910.0,107900.0,0.03168918]
[1748500693429,6.91227334,107910.0,107900.0,0.03168918]
[1748500693696,6.91226677,107910.0,107900.0,0.03168918]
[1748500694174,6.53502159,107910.0,107900.0,0.03168918]
[1748500694664,6.64017362,107910.0,107900.0,0.03168918]
[1748500694881,6.08283438,107910.0,107900.0,0.03168918]
[1748500695109,6.38451438,107910.0,107900.0,0.03168918]
[1748500695347,6.38443438,107910.0,107900.0,0.03168918]
[1748500703381,6.08205338,107910.0,107900.0,0.03168918]
[1748500703592,1.33443438,107910.0,107900.0,0.03168918]
[1748500704892,1.03205338,107910.0,107900.0,0.03168918]
[1748500705143,1.33443438,107910.0,107900.0,0.03172918]
[1748500710855,6.38443438,107910.0,107900.0,0.03172918]
[1748500711078,6.08205338,107910.0,107900.0,0.03172918]
[1748500711294,6.38205338,107910.0,107900.0,0.03172918]
[1748500711509,6.68443438,107910.0,107900.0,0.03172918]
[1748500713900,6.68179438,107910.0,107900.0,0.03172918]
[1748500714108,7.05972868,107910.0,107900.0,0.03172918]
[1748500714769,7.05972868,107910.0,107900.0,0.00012918]
[1748500714994,6.37941338,107910.0,107900.0,0.00012918]
[1748500715211,7.05972868,107910.0,107900.0,0.00012918]
[1748500715649,7.05972868,107910.0,107900.0,0.01572918]
[1748500718045,7.22071415,107910.0,107900.0,0.00012918]
[1748500718254,7.1296602,107910.0,107900.0,0.00012918]
[1748500718461,7.20780083,107910.0,107900.0,0.00012918]
[1748500718682,7.14369077,107910.0,107900.0,0.00012918]
[1748500719262,7.20782714,107910.0,107900.0,0.00012918]
[1748500720436,6.96795018,107910.0,107900.0,0.00012918]
[1748500721081,7.05900413,107910.0,107900.0,0.00012918]
[1748500721502,7.08682913,107910.0,107900.0,0.00012918]
[1748500721927,6.99577518,107910.0,107900.0,0.00012918]
[1748500722817,6.31545988,107910.0,107900.0,0.00012918]
[1748500723076,6.99577518,107910.0,107900.0,0.00012918]
[1748500723340,6.98666218,107910.0,107900.0,0.00012918]
[1748500724695,6.98665574,107910.0,107900.0,0.00012918]
[1748500724929,6.98649574,107910.0,107900.0,0.00012918]
[1748500726362,7.07754969,107910.0,107900.0,0.00012918]
[1748500726584,6.98649574,107910.0,107900.0,0.00012918]
[1748500727853,6.98649259,107910.0,107900.0,0.00012918]
[1748500731519,6.98649282,107910.0,107900.0,0.00012918]
[1748500731735,6.95372155,107910.0,107900.0,0.00012918]
[1748500732151,6.95264155,107910.0,107900.0,0.00012918]
[1748500732152,6.93744155,107910.0,107900.0,0.00012918]
[1748500732373,6.54404155,107910.0,107900.0,0.00012918]
[1748500732669,6.93740155,107910.0,107900.0,0.00012918]
[1748500734657,6.92184155,107910.0,107900.0,0.00012918]
[1748500734889,6.89579711,107910.0,107900.0,0.01632918]
[1748500735104,6.50279711,107910.0,107900.0,0.00012918]
[1748500735542,6.89575711,107910.0,107900.0,0.00012918]
[1748500736048,6.89575711,107910.0,107900.0,0.01562918]
[1748500736302,6.89576359,107910.0,107900.0,0.01562918]
[1748500736738,6.89576359,107910.0,107900.0,0.03212918]
[1748500736739,7.2095856,107910.0,107900.0,0.03212918]
[1748500736960,7.5066256,107910.0,107900.0,0.03212918]
[1748500737383,7.2095856,107910.0,107900.0,0.03212918]
[1748500737633,7.5065456,107910.0,107900.0,0.03212918]
[1748500740791,7.5065456,107910.0,107900.0,0.01562918]
[1748500741476,7.5065456,107910.0,107900.0,0.03222918]
[1748500743284,7.43129626,107910.0,107900.0,0.03222918]
[1748500743502,7.49545231,107910.0,107900.0,0.03222918]
[1748500745690,7.15529466,107910.0,107900.0,0.01562918]
[1748500745922,7.49545231,107910.0,107900.0,0.01562918]
[1748500746395,7.49545231,107910.0,107900.0,0.03172918]
[1748500747287,7.49545231,107910.0,107900.0,0.01562918]
[1748500751438,7.28650626,107910.0,107900.0,0.01562918]
[1748500751644,7.19545231,107910.0,107900.0,0.00012918]
[1748500752079,7.19546762,107910.0,107900.0,0.00012918]
[1748500752302,6.9238613,107910.0,107900.0,0.00012918]
[1748500752710,6.89106748,107910.0,107900.0,0.00012918]
[1748500753510,6.98212143,107910.0,107900.0,0.00012918]
[1748500753743,6.99712143,107910.0,107900.0,0.00012918]
[1748500753951,6.90606748,107910.0,107900.0,0.00012918]
[1748500755689,6.89106748,107910.0,107900.0,0.00012918]
[1748500755904,6.90606748,107910.0,107900.0,0.00012918]
[1748500756339,6.90607447,107910.0,107900.0,0.00012918]
[1748500757301,6.89107447,107910.0,107900.0,0.00012918]
[1748500758262,6.98212842,107910.0,107900.0,0.00012918]
[1748500758492,6.92267447,107910.0,107900.0,0.00012918]
[1748500760994,6.62571447,107910.0,107900.0,0.00012918]
[1748500761231,6.92191447,107910.0,107900.0,0.00012918]
[1748500761928,6.89031447,107910.0,107900.0,0.00012918]
[1748500764775,6.89033448,107910.0,107900.0,0.00012918]
[1748500765809,7.29073448,107910.0,107900.0,0.00012918]
[1748500768546,7.31617487,107910.0,107900.0,0.00012918]
[1748500768764,7.29073448,107910.0,107900.0,0.00012918]
[1748500769875,7.32544246,107910.0,107900.0,0.00012918]
[1748500770855,6.64512716,107910.0,107900.0,0.00012918]
[1748500771084,7.32544246,107910.0,107900.0,0.00012918]
[1748500771567,6.64512716,107910.0,107900.0,0.00012918]
[1748500771809,7.02924246,107910.0,107900.0,0.00012918]
[1748500772055,7.32456246,107910.0,107900.0,0.00012918]
[1748500773413,7.32456437,107910.0,107900.0,0.00012918]
[1748500776113,6.64424907,107910.0,107900.0,0.00012918]
[1748500776334,7.32456437,107910.0,107900.0,0.00012918]
[1748500777770,7.32456549,107910.0,107900.0,0.00012918]
[1748500781071,7.351643,107910.0,107900.0,0.00012918]
[1748500781599,7.69180065,107910.0,107900.0,0.00012918]
[1748500783219,1.13462447,107900.0,107890.0,0.0314]
[1748500783428,7.06107786,107900.0,107890.0,0.0314]
[1748500783880,7.08890486,107900.0,107890.0,0.0314]
[1748500784916,7.08890486,107900.0,107890.0,0.0324]
[1748500786411,7.08890421,107900.0,107890.0,0.0324]
[1748500788211,7.18194421,107900.0,107890.0,0.0324]
[1748500789114,7.14911862,107900.0,107890.0,0.0324]
[1748500790861,7.14911801,107900.0,107890.0,0.0324]
[1748500791299,7.44263801,107900.0,107890.0,0.0324]
[1748500791501,7.10248036,107900.0,107890.0,0.0324]
[1748500796667,7.10248036,107900.0,107890.0,0.0324]
[1748500802271,7.10248273,107900.0,107890.0,0.0324]
[1748500802507,6.76232508,107900.0,107890.0,0.0324]
[1748500802735,7.10248273,107900.0,107890.0,0.0324]
[1748500806739,7.10248253,107900.0,107890.0,0.0324]
[1748500809108,7.10068253,107900.0,107890.0,0.0324]
[1748500809934,6.76056488,107900.0,107890.0,0.0324]
[1748500810132,6.80451102,107900.0,107890.0,0.0324]
[1748500810333,7.14470867,107900.0,107890.0,0.0324]
[1748500810735,7.14470696,107900.0,107890.0,0.0324]
[1748500813360,6.51278931,107900.0,107890.0,0.0324]
[1748500813583,7.14478696,107900.0,107890.0,0.0324]
[1748500814222,7.12996053,107900.0,107890.0,0.0324]
[1748500815193,1.36901715,107900.0,107890.0,0.0324]
[1748500815422,1.75229715,107900.0,107890.0,0.0324]
[1748500816230,1.36901715,107900.0,107890.0,0.0324]
[1748500816450,1.75221715,107900.0,107890.0,0.0324]
[1748500818765,1.4120595,107900.0,107890.0,0.0324]
[1748500818979,1.75221715,107900.0,107890.0,0.0324]
[1748500819406,1.75220918,107900.0,107890.0,0.0324]
[1748500820047,1.46064918,107900.0,107890.0,0.0324]
[1748500820273,1.75223938,107900.0,107890.0,0.0324]
[1748500821722,1.75207938,107900.0,107890.0,0.0324]
[1748500823196,1.74096848,107900.0,107890.0,0.0324]
[1748500823752,1.74094763,107900.0,107890.0,0.0324]
[1748500825123,1.67674307,107900.0,107890.0,0.0324]
[1748500825531,1.74094556,107900.0,107890.0,0.0324]
[1748500825738,1.75205434,107900.0,107890.0,0.0324]
[1748500826545,6.80205434,107900.0,107890.0,0.0324]
[1748500831177,6.67561588,107900.0,107890.0,0.0324]
[1748500831443,6.68488354,107900.0,107890.0,0.0324]
[1748500832662,6.68488455,107900.0,107890.0,0.0324]
[1748500835725,6.3447269,107900.0,107890.0,0.0324]
[1748500835953,6.68488455,107900.0,107890.0,0.0324]
[1748500836177,6.38488455,107900.0,107890.0,0.0324]
[1748500836735,6.38488686,107900.0,107890.0,0.0324]
[1748500841286,6.44908305,107900.0,107890.0,0.0324]
[1748500841695,6.1089254,107900.0,107890.0,0.0324]
[1748500841871,6.44908305,107900.0,107890.0,0.0324]
[1748500845616,6.44909031,107900.0,107890.0,0.0324]
[1748500846303,6.10893266,107900.0,107890.0,0.0324]
[1748500846540,6.44909031,107900.0,107890.0,0.0324]
[1748500846773,6.10893266,107900.0,107890.0,0.0324]
[1748500846987,6.44909031,107900.0,107890.0,0.0324]
[1748500849804,6.44910649,107900.0,107890.0,0.0324]
[1748500856627,6.38847725,107900.0,107890.0,0.0324]
[1748500857296,6.45271823,107900.0,107890.0,0.0324]
[1748500857564,6.11256058,107900.0,107890.0,0.0324]
[1748500857793,6.45271823,107900.0,107890.0,0.0324]
[1748500858078,6.44159804,107900.0,107890.0,0.0324]
[1748500858969,6.41018647,107900.0,107890.0,0.0324]
[1748500859396,6.37735708,107900.0,107890.0,0.0324]
[1748500860806,6.38847724,107900.0,107890.0,0.0324]
[1748500861019,6.09703724,107900.0,107890.0,0.0324]
[1748500861243,0.17306548,107900.0,107890.0,0.37255765]
[1748500861467,0.0499437,107900.0,107890.0,0.6264686]
[1748500861688,0.25383584,107900.0,107890.0,0.99100954]
[1748500861912,0.59383662,107900.0,107890.0,0.99100962]
[1748500862133,0.5845693,107900.0,107890.0,1.00027806]
[1748500862347,0.2445693,107900.0,107890.0,0.99100962]
[1748500862567,0.2445693,107900.0,107890.0,1.00027806]
[1748500862761,0.5845693,107900.0,107890.0,0.99100962]
[1748500863224,0.55530172,107900.0,107890.0,1.04100962]
[1748500863665,0.55530172,107900.0,107890.0,1.05027806]
[1748500864126,0.02067681,107900.0,107890.0,1.00027806]
[1748500864365,0.0392117,107900.0,107890.0,1.00027806]
[1748500864583,0.22456851,107900.0,107890.0,1.00027806]
[1748500866389,0.22456851,107900.0,107890.0,1.00957037]
[1748500866718,0.22456851,107900.0,107890.0,1.00961037]
[1748500869451,0.22456851,107900.0,107890.0,1.00031806]
[1748500869671,0.21530128,107900.0,107890.0,0.7871385]
[1748500870235,0.19462447,107900.0,107890.0,0.7871385]
[1748500873242,0.19462447,107900.0,107890.0,0.44698085]
[1748500873479,0.19462447,107900.0,107890.0,0.7871385]
[1748500877339,0.17462447,107900.0,107890.0,0.7871385]
[1748500884304,0.15462447,107900.0,107890.0,0.8371385]
[1748500884524,0.19465545,107910.0,107900.0,0.0815]
[1748500884798,0.49128234,107910.0,107900.0,0.37397436]
[1748500885024,0.49128234,107910.0,107900.0,0.37165765]
[1748500885660,0.48201562,107910.0,107900.0,0.0315]
[1748500886109,0.48201562,107910.0,107900.0,0.0162]
[1748500886560,0.48301562,107910.0,107900.0,0.0162]
[1748500886773,0.48301562,107910.0,107890.0,0.43064]
[1748500886774,0.19462447,107900.0,107890.0,0.43064]
[1748500888329,0.19462447,107900.0,107890.0,0.43164]
[1748500889725,0.19462447,107900.0,107890.0,0.03164]
[1748500890357,0.19462447,107900.0,107890.0,0.43164]
[1748500891442,0.17462447,107900.0,107890.0,0.43164]
[1748500892089,0.18389213,107900.0,107890.0,0.43164]
[1748500892520,0.18389213,107900.0,107890.0,0.00104]
[1748500892521,0.89584978,107900.0,107890.0,0.00104]
[1748500896277,0.88044978,107900.0,107890.0,0.00104]
[1748500897328,0.52389213,107900.0,107890.0,0.00104]
[1748500897559,0.86404978,107900.0,107890.0,0.00104]
[1748500897781,0.87984978,107900.0,107890.0,0.00104]
[1748500898455,0.85984978,107900.0,107890.0,0.00104]
[1748500899596,0.85984978,107900.0,107890.0,0.03284]
[1748500899597,0.79073213,107900.0,107890.0,0.03284]
[1748500901358,0.79065213,107900.0,107890.0,0.03284]
[1748500902852,0.79065213,107900.0,107890.0,0.43284]
[1748500903057,0.50389213,107900.0,107890.0,0.43284]
[1748500903261,0.79065213,107900.0,107890.0,0.43284]
[1748500905544,0.77065213,107900.0,107890.0,0.43284]
[1748500905754,0.77065213,107900.0,107890.0,0.03284]
[1748500906302,0.77065213,107900.0,107890.0,0.43284]
[1748500908450,0.77065213,107900.0,107890.0,0.03284]
[1748500908800,0.77065213,107900.0,107890.0,0.43284]
[1748500910242,1.11080978,107900.0,107890.0,0.43284]
[1748500911671,0.77065213,107900.0,107890.0,0.43284]
[1748500912662,0.75065213,107900.0,107890.0,0.43284]
[1748500913229,0.75065213,107900.0,107890.0,0.03284]
[1748500913800,0.75065213,107900.0,107890.0,0.43284]
[1748500916809,0.75065213,107900.0,107890.0,0.03284]
[1748500917225,0.75065213,107900.0,107890.0,0.43284]
[1748500919851,0.73065213,107900.0,107890.0,0.43284]
[1748500920255,0.73065213,107900.0,107890.0,0.03284]
[1748500920663,0.73065213,107900.0,107890.0,0.43284]
[1748500921484,1.07080978,107900.0,107890.0,0.43284]
[1748500922896,1.07080978,107900.0,107890.0,0.41644]
[1748500923734,1.17696373,107900.0,107890.0,0.00104]
[1748500923889,1.19346373,107900.0,107890.0,0.00104]
[1748500928246,1.16186373,107900.0,107890.0,0.00104]
[1748500930038,0.82170608,107900.0,107890.0,0.00104]
[1748500930262,1.16186373,107900.0,107890.0,0.00104]
[1748500932940,0.82170608,107900.0,107890.0,0.00104]
[1748500933147,1.16186373,107900.0,107890.0,0.00104]
[1748500950852,0.87510373,107900.0,107890.0,0.00104]
[1748500951110,1.16182373,107900.0,107890.0,0.01704]
[1748500954994,1.16182373,107900.0,107890.0,0.00104]
[1748500962921,1.19342373,107900.0,107890.0,0.00104]
[1748500965476,1.16174373,107900.0,107890.0,0.00104]
[1748500967104,1.16174373,107900.0,107890.0,0.01734]
[1748500968570,0.87510373,107900.0,107890.0,0.01734]
[1748500968792,0.78404978,107900.0,107890.0,0.03394]
[1748500969024,1.07068978,107900.0,107890.0,0.03394]
[1748500969231,1.07068978,107900.0,107890.0,0.00104]
[1748500969436,1.07068978,107900.0,107890.0,0.01644]
[1748500970181,1.07068978,107900.0,107890.0,0.03264]
[1748500981492,0.78404978,107900.0,107890.0,0.03264]
[1748500981696,1.07064978,107900.0,107890.0,0.03264]
[1748500984065,0.78404978,107900.0,107890.0,0.03264]
[1748500984278,1.07060978,107900.0,107890.0,0.03264]
[1748500984492,0.44389213,107900.0,107890.0,0.03264]
[1748500984740,0.44389213,107900.0,107890.0,0.08264]
[1748500984937,0.44389213,107900.0,107890.0,0.03264]
[1748500984938,0.73045213,107900.0,107890.0,0.03264]
[1748500986424,0.73045213,107900.0,107890.0,0.08264]
[1748500986632,0.73045213,107900.0,107890.0,0.03264]
[1748500987309,0.73045213,107900.0,107890.0,0.08264]
[1748500987517,0.73045213,107900.0,107890.0,0.03264]
[1748500987731,0.73045213,107900.0,107890.0,0.08264]
[1748500988156,0.7299085,107900.0,107890.0,0.08264]
[1748500988576,0.7299085,107900.0,107890.0,0.03264]
[1748500988796,0.7299085,107900.0,107890.0,0.43264]
[1748500989469,1.07006615,107900.0,107890.0,0.43264]
[1748500991884,1.07006615,107900.0,107890.0,0.03264]
[1748500992434,1.07006615,107900.0,107890.0,0.43264]
[1748500992934,1.07006615,107900.0,107890.0,0.03264]
[1748500993141,1.07006615,107900.0,107890.0,0.00104]
[1748500993360,1.09879917,107900.0,107890.0,0.00104]
[1748500993737,1.07006615,107900.0,107890.0,0.00104]
[1748500997230,1.1611201,107900.0,107890.0,0.00104]
[1748500997451,1.1764201,107900.0,107890.0,0.00104]
[1748500997681,1.1923201,107900.0,107890.0,0.00104]
[1748500998516,1.1764201,107900.0,107890.0,0.00104]
[1748501000074,6.2264201,107900.0,107890.0,0.00104]
[1748501000290,6.2415201,107900.0,107890.0,0.00104]
[1748501000502,0.87480016,107890.0,107880.0,0.02834]
[1748501001336,0.19466055,107880.0,107870.0,0.43104085]
[1748501001718,0.17466055,107880.0,107870.0,0.43104085]
[1748501001918,0.18392993,107880.0,107870.0,0.43104085]
[1748501003420,0.18392993,107880.0,107870.0,0.45034085]
[1748501004005,0.18392993,107880.0,107870.0,0.05234085]
[1748501004601,0.18392993,107880.0,107870.0,0.45234085]
[1748501006721,0.18392993,107880.0,107870.0,0.7924985]
[1748501007572,0.18392993,107880.0,107870.0,0.3924985]
[1748501007919,0.18392993,107880.0,107870.0,0.05234085]
[1748501008127,0.18392993,107880.0,107870.0,0.45234085]
[1748501008838,0.16392993,107880.0,107870.0,0.45234085]
[1748501011152,0.16392993,107880.0,107870.0,0.05234085]
[1748501011615,0.16392993,107880.0,107870.0,0.45234085]
[1748501014592,0.16392993,107880.0,107870.0,0.05234085]
[1748501015254,0.16392993,107880.0,107870.0,0.45234085]
[1748501015670,0.16392993,107880.0,107870.0,0.7924985]
[1748501015880,0.16392993,107880.0,107870.0,0.45234085]
[1748501016096,0.14392993,107880.0,107870.0,0.7924985]
[1748501018266,0.14392993,107880.0,107870.0,0.3924985]
[1748501018721,0.14392993,107880.0,107870.0,0.7924985]
[1748501019158,0.15319923,107880.0,107870.0,0.81103915]
[1748501019370,0.15319923,107880.0,107870.0,0.80176891]
[1748501019583,0.02780815,107880.0,107870.0,1.08750146]
[1748501019799,0.21319932,107880.0,107870.0,0.89282286]
[1748501020011,0.21319932,107880.0,107870.0,0.90209319]
[1748501020216,0.21319932,107880.0,107870.0,1.10604195]
[1748501020872,0.21319932,107880.0,107870.0,1.11531202]
[1748501021462,0.21319932,107880.0,107870.0,1.10604195]
[1748501022660,0.20393002,107880.0,107870.0,0.9020931]
[1748501023072,0.18393002,107880.0,107870.0,0.9020931]
[1748501024443,0.20246887,107880.0,107870.0,0.5433948]
[1748501024649,0.20246887,107880.0,107870.0,0.89282286]
[1748501024865,0.20246887,107880.0,107870.0,0.89282278]
[1748501025067,0.20246887,107880.0,107870.0,0.89282286]
[1748501025453,0.20246887,107880.0,107870.0,0.90209319]
[1748501025950,0.20246887,107880.0,107870.0,1.08750155]
[1748501026377,0.20246887,107880.0,107870.0,1.09677171]
[1748501026604,0.20246887,107880.0,107870.0,1.10604178]
[1748501026792,0.20246887,107880.0,107870.0,1.08750155]
[1748501027000,0.19319949,107880.0,107870.0,1.09677179]
[1748501027467,0.19319949,107880.0,107870.0,1.08750155]
[1748501028341,0.19319949,107880.0,107870.0,1.09677179]
[1748501030168,0.17319949,107880.0,107870.0,1.09677179]
[1748501031212,0.02780823,107880.0,107870.0,1.10604177]
[1748501031436,0.2131994,107880.0,107870.0,1.09677179]
[1748501031605,0.2131994,107880.0,107870.0,1.10604195]
[1748501032480,0.20393019,107880.0,107870.0,0.90209319]
[1748501032687,0.20393019,107880.0,107870.0,1.09677179]
[1748501033141,0.19466072,107880.0,107870.0,1.09677179]
[1748501033346,0.19466072,107880.0,107870.0,0.90209319]
[1748501034306,0.19466072,107880.0,107870.0,1.08750155]
[1748501034504,0.19466072,107880.0,107870.0,1.09677179]
[1748501036473,0.19466072,107880.0,107870.0,0.88355245]
[1748501036680,0.18539117,107880.0,107870.0,0.55266521]
[1748501036885,0.18539117,107880.0,107870.0,0.56193554]
[1748501038055,0.16539117,107880.0,107870.0,0.5433948]
[1748501038258,0.16539117,107880.0,107870.0,0.55266521]
[1748501039637,0.16539117,107880.0,107870.0,0.5433948]
[1748501040049,0.16539117,107880.0,107870.0,0.55266521]
[1748501040612,0.16539117,107880.0,107870.0,0.5433948]
[1748501041892,0.16539117,107880.0,107870.0,0.88355245]
[1748501043319,0.16539117,107880.0,107870.0,0.5433948]
[1748501043519,0.16539117,107880.0,107870.0,0.45234085]
[1748501043520,0.50539117,107880.0,107870.0,0.45234085]
[1748501043736,0.50539117,107880.0,107870.0,0.43584085]
[1748501044596,0.50539117,107880.0,107870.0,0.41954085]
[1748501045184,0.48539117,107880.0,107870.0,0.41954085]
[1748501046816,0.48539117,107880.0,107870.0,0.01954085]
[1748501047326,0.48539117,107880.0,107870.0,0.41954085]
[1748501048082,0.14539117,107880.0,107870.0,0.41954085]
[1748501048931,0.14539117,107880.0,107870.0,0.42819224]
[1748501049150,0.14539117,107880.0,107870.0,0.46520592]
[1748501049357,0.14539117,107880.0,107870.0,0.41954085]
[1748501049765,0.14539117,107880.0,107870.0,0.42819091]
[1748501049976,0.14539117,107880.0,107870.0,0.41954085]
[1748501050370,0.14539117,107880.0,107870.0,0.01954085]
[1748501050607,0.14539117,107880.0,107870.0,0.02819106]
[1748501050791,0.14539117,107880.0,107870.0,0.42819106]
[1748501051044,0.14539117,107880.0,107870.0,0.41954085]
[1748501051668,0.15453895,107880.0,107870.0,0.41954085]
[1748501052279,0.13453895,107880.0,107870.0,0.41954085]
[1748501053668,0.13453895,107880.0,107870.0,0.42818989]
[1748501054046,0.13453895,107880.0,107870.0,0.02818991]
[1748501054252,0.12539117,107880.0,107870.0,0.02818986]
[1748501054598,0.12539117,107880.0,107870.0,0.42818986]
[1748501054943,0.12539117,107880.0,107870.0,0.42819006]
[1748501055594,0.12539117,107880.0,107870.0,0.41954085]
[1748501056056,0.12539117,107880.0,107870.0,0.42819014]
[1748501056260,0.12539117,107880.0,107870.0,0.41954085]
[1748501056449,0.12539117,107880.0,107870.0,0.42819009]
[1748501056649,0.12539117,107880.0,107870.0,0.42819007]
[1748501057555,0.12539117,107880.0,107870.0,0.02819161]
[1748501057764,0.46554882,107880.0,107870.0,0.01954085]
[1748501057995,0.46554882,107880.0,107870.0,0.41954085]
[1748501059120,0.46554882,107880.0,107870.0,0.4281918]
[1748501059323,0.44554882,107880.0,107870.0,0.41954085]
[1748501059753,0.44554882,107880.0,107870.0,0.42819195]
[1748501059961,0.44554882,107880.0,107870.0,0.41954085]
[1748501060377,0.44554882,107880.0,107870.0,0.4281924]
[1748501060528,0.44554882,107880.0,107870.0,0.42819253]
[1748501060729,0.10539117,107880.0,107870.0,0.41954085]
[1748501060930,0.10539117,107880.0,107870.0,0.01954085]
[1748501061477,0.10539117,107880.0,107870.0,0.41954085]
[1748501063033,0.10539117,107880.0,107870.0,0.44431118]
[1748501063246,0.10539117,107880.0,107870.0,0.45931126]
[1748501063460,0.10539117,107880.0,107870.0,0.65398986]
[1748501063662,0.10539117,107880.0,107870.0,0.66264066]
[1748501063866,0.20392951,107880.0,107870.0,0.65398978]
[1748501064076,0.22246844,107880.0,107870.0,0.66325976]
[1748501064482,0.23173756,107880.0,107870.0,0.25398978]
[1748501064657,0.23173756,107880.0,107870.0,0.2719105]
[1748501064862,0.22246869,107880.0,107870.0,0.2719105]
[1748501065042,0.20393019,107880.0,107870.0,0.62114921]
[1748501065242,0.20393019,107880.0,107870.0,0.65527022]
[1748501065626,0.20393019,107880.0,107870.0,0.65588978]
[1748501065877,0.20393019,107880.0,107870.0,0.66454046]
[1748501066296,0.18393019,107880.0,107870.0,0.66454046]
[1748501066711,0.18393019,107880.0,107870.0,0.66453751]